[Event "Early-Titled-Tuesday-Blitz-August-29-2023"]
[Site "Chess.com"]
[Date "2023.08.29"]
[Round "2"]
[White "Daniel_Salinas"]
[Black "Galileo22"]
[Result "1-0"]
[WhiteElo "2312"]
[BlackElo "2681"]
[TimeControl "180+1"]
[EndTime "8:15:40 PDT"]
[Termination "Daniel_Salinas won on time"]

1. d4 {[%clk 0:03:00.9]} 1... d5 {[%clk 0:02:56.7]} 2. c4 {[%clk 0:02:59.6]}
2... e6 {[%clk 0:02:57.2]} 3. Nf3 {[%clk 0:02:59.5]} 3... Nf6 {[%clk 0:02:56.6]}
4. g3 {[%clk 0:02:59.9]} 4... dxc4 {[%clk 0:02:48.1]} 5. Bg2 {[%clk 0:02:59.2]}
5... Be7 {[%clk 0:02:48.5]} 6. O-O {[%clk 0:02:59]} 6... O-O {[%clk 0:02:49.2]}
7. Qc2 {[%clk 0:02:57.8]} 7... a6 {[%clk 0:02:48.3]} 8. Rd1 {[%clk 0:02:57.6]}
8... Ra7 {[%clk 0:02:21]} 9. a4 {[%clk 0:02:47.5]} 9... Nc6 {[%clk 0:02:06.5]}
10. Qxc4 {[%clk 0:02:46.2]} 10... Bd7 {[%clk 0:01:36.6]} 11. Bg5 {[%clk
0:02:36.7]} 11... b5 {[%clk 0:01:20.7]} 12. Qc1 {[%clk 0:02:29]} 12... Na5
{[%clk 0:01:10.6]} 13. Qc2 {[%clk 0:02:22.5]} 13... Nd5 {[%clk 0:01:05.5]} 14.
Bxe7 {[%clk 0:02:20.8]} 14... Qxe7 {[%clk 0:01:06.4]} 15. Ne5 {[%clk 0:02:14]}
15... Rb8 {[%clk 0:00:25]} 16. axb5 {[%clk 0:02:08.8]} 16... axb5 {[%clk
0:00:23.8]} 17. Bxd5 {[%clk 0:02:05.9]} 17... exd5 {[%clk 0:00:23.7]} 18. Qc5
{[%clk 0:02:05.6]} 18... Qxc5 {[%clk 0:00:18.8]} 19. dxc5 {[%clk 0:02:06.5]}
19... Be6 {[%clk 0:00:10]} 20. b4 {[%clk 0:02:05.2]} 20... Rba8 {[%clk
0:00:10.2]} 21. bxa5 {[%clk 0:02:01.7]} 21... Rxa5 {[%clk 0:00:10.5]} 22. Rxa5
{[%clk 0:02:02.6]} 22... Rxa5 {[%clk 0:00:11.1]} 23. e4 {[%clk 0:02:03.5]} 1-0

[Event "Early-Titled-Tuesday-Blitz-August-29-2023"]
[Site "Chess.com"]
[Date "2023.08.29"]
[Round "2"]
[White "Kotofeyca"]
[Black "Sunny_Star"]
[Result "1-0"]
[WhiteElo "2439"]
[BlackElo "2078"]
[TimeControl "180+1"]
[EndTime "8:15:44 PDT"]
[Termination "Kotofeyca won on time"]

1. d4 {[%clk 0:02:59.3]} 1... Nf6 {[%clk 0:01:12.8]} 2. c4 {[%clk 0:02:57.8]}
2... e6 {[%clk 0:01:07.4]} 3. Nf3 {[%clk 0:02:57.2]} 3... d5 {[%clk 0:01:07.1]}
4. Nc3 {[%clk 0:02:56.4]} 4... Be7 {[%clk 0:01:06.7]} 5. cxd5 {[%clk 0:02:55.7]}
5... exd5 {[%clk 0:01:06.6]} 6. Bg5 {[%clk 0:02:56]} 6... O-O {[%clk 0:01:04.6]}
7. Qc2 {[%clk 0:02:56.1]} 7... c5 {[%clk 0:01:01.1]} 8. dxc5 {[%clk 0:02:50.9]}
8... Bxc5 {[%clk 0:00:43.8]} 9. Rd1 {[%clk 0:02:39.1]} 9... Be6 {[%clk
0:00:33.2]} 10. e4 {[%clk 0:02:32.8]} 10... Re8 {[%clk 0:00:18]} 11. Bb5 {[%clk
0:02:22.1]} 11... Nbd7 {[%clk 0:00:15]} 12. O-O {[%clk 0:02:20.5]} 12... dxe4
{[%clk 0:00:12.6]} 13. Nxe4 {[%clk 0:02:16.3]} 13... Qb6 {[%clk 0:00:06.9]} 14.
Bxd7 {[%clk 0:01:52.3]} 14... Nxd7 {[%clk 0:00:05.2]} 15. Rxd7 {[%clk
0:01:51.4]} 1-0

[Event "Early-Titled-Tuesday-Blitz-August-29-2023"]
[Site "Chess.com"]
[Date "2023.08.29"]
[Round "2"]
[White "BillieKimbah"]
[Black "only_strong_moves"]
[Result "1-0"]
[WhiteElo "3031"]
[BlackElo "2515"]
[TimeControl "180+1"]
[EndTime "8:15:53 PDT"]
[Termination "BillieKimbah won by resignation"]

1. d4 {[%clk 0:03:00.9]} 1... Nf6 {[%clk 0:02:58.7]} 2. Nf3 {[%clk 0:03:01.5]}
2... e6 {[%clk 0:02:58.6]} 3. Bg5 {[%clk 0:03:01.6]} 3... d5 {[%clk 0:02:57.5]}
4. e3 {[%clk 0:03:01.6]} 4... c5 {[%clk 0:02:57.9]} 5. Nbd2 {[%clk 0:03:00.9]}
5... Qb6 {[%clk 0:02:40.8]} 6. Bxf6 {[%clk 0:02:59.2]} 6... gxf6 {[%clk
0:02:41.7]} 7. Rb1 {[%clk 0:02:58.4]} 7... Nc6 {[%clk 0:02:38.6]} 8. c3 {[%clk
0:02:57.7]} 8... e5 {[%clk 0:02:32.8]} 9. dxc5 {[%clk 0:02:57.4]} 9... Bxc5
{[%clk 0:02:21.5]} 10. b4 {[%clk 0:02:57]} 10... Bxe3 {[%clk 0:02:06]} 11. fxe3
{[%clk 0:02:53.4]} 11... Qxe3+ {[%clk 0:02:06.9]} 12. Be2 {[%clk 0:02:07]} 12...
e4 {[%clk 0:01:58.5]} 13. Nd4 {[%clk 0:02:00.6]} 13... Ne5 {[%clk 0:01:56.2]}
14. Nf1 {[%clk 0:01:47.2]} 14... Qg5 {[%clk 0:01:22.3]} 15. g3 {[%clk
0:01:43.7]} 15... Bg4 {[%clk 0:01:14.8]} 16. Qd2 {[%clk 0:01:42.2]} 16... Qh5
{[%clk 0:00:53.5]} 17. Ne3 {[%clk 0:01:38.9]} 17... Bxe2 {[%clk 0:00:51.1]} 18.
Qxe2 {[%clk 0:01:39.8]} 18... Nd3+ {[%clk 0:00:50.2]} 19. Kd2 {[%clk 0:01:39.7]}
19... Qe5 {[%clk 0:00:45.3]} 20. Rhf1 {[%clk 0:01:38.1]} 20... Rc8 {[%clk
0:00:24.5]} 21. Rf5 {[%clk 0:01:34.7]} 21... Qc7 {[%clk 0:00:24.6]} 22. Nxd5
{[%clk 0:01:32.1]} 1-0

[Event "Early-Titled-Tuesday-Blitz-August-29-2023"]
[Site "Chess.com"]
[Date "2023.08.29"]
[Round "2"]
[White "falzehope0"]
[Black "CheckThis4"]
[Result "0-1"]
[WhiteElo "2407"]
[BlackElo "2682"]
[TimeControl "180+1"]
[EndTime "8:15:55 PDT"]
[Termination "CheckThis4 won by resignation"]

1. d4 {[%clk 0:02:56.2]} 1... Nf6 {[%clk 0:02:59.6]} 2. e3 {[%clk 0:02:56.4]}
2... d5 {[%clk 0:02:58.8]} 3. Bd3 {[%clk 0:02:56.6]} 3... c5 {[%clk 0:02:58.7]}
4. c3 {[%clk 0:02:56.7]} 4... Nc6 {[%clk 0:02:59.3]} 5. f4 {[%clk 0:02:56.6]}
5... g6 {[%clk 0:02:57.9]} 6. Nf3 {[%clk 0:02:56]} 6... Bf5 {[%clk 0:02:58.3]}
7. O-O {[%clk 0:02:55.8]} 7... e6 {[%clk 0:02:47.1]} 8. Ne5 {[%clk 0:02:53.7]}
8... Qc7 {[%clk 0:02:41.4]} 9. Be2 {[%clk 0:02:43.8]} 9... h5 {[%clk 0:02:36.5]}
10. Nd2 {[%clk 0:02:43.2]} 10... Be7 {[%clk 0:02:23.2]} 11. b3 {[%clk
0:02:40.1]} 11... cxd4 {[%clk 0:02:17.9]} 12. exd4 {[%clk 0:02:35]} 12... Nxe5
{[%clk 0:02:05.7]} 13. dxe5 {[%clk 0:02:21.6]} 13... Ng4 {[%clk 0:02:01.2]} 14.
Bxg4 {[%clk 0:02:06.8]} 14... hxg4 {[%clk 0:01:50.2]} 15. Bb2 {[%clk 0:02:04.1]}
15... Bc5+ {[%clk 0:01:43.5]} 16. Kh1 {[%clk 0:02:01.5]} 16... g3 {[%clk
0:01:20.2]} 17. h3 {[%clk 0:02:00.9]} 17... Qe7 {[%clk 0:01:20.1]} 18. Nf3
{[%clk 0:01:53.6]} 18... O-O-O {[%clk 0:01:12.3]} 19. Nd4 {[%clk 0:01:49.7]}
19... Bxh3 {[%clk 0:01:07.5]} 20. gxh3 {[%clk 0:01:47.3]} 20... Rxh3+ {[%clk
0:01:07.2]} 21. Kg1 {[%clk 0:01:46.9]} 21... Qh4 {[%clk 0:00:59.5]} 22. Qf3
{[%clk 0:01:44.9]} 22... Rh8 {[%clk 0:00:55.5]} 0-1

[Event "Early-Titled-Tuesday-Blitz-August-29-2023"]
[Site "Chess.com"]
[Date "2023.08.29"]
[Round "2"]
[White "ljuks68"]
[Black "hurricane7791"]
[Result "1-0"]
[WhiteElo "2462"]
[BlackElo "2758"]
[TimeControl "180+1"]
[EndTime "8:15:56 PDT"]
[Termination "ljuks68 won by resignation"]

1. e4 {[%clk 0:03:00.9]} 1... c5 {[%clk 0:02:55.2]} 2. Nf3 {[%clk 0:03:00.8]}
2... d6 {[%clk 0:02:53]} 3. d4 {[%clk 0:03:00.9]} 3... cxd4 {[%clk 0:02:53.9]}
4. Nxd4 {[%clk 0:03:01.2]} 4... Nf6 {[%clk 0:02:51.7]} 5. Nc3 {[%clk 0:03:01.3]}
5... a6 {[%clk 0:02:52.3]} 6. Bg5 {[%clk 0:03:01.4]} 6... Nbd7 {[%clk
0:02:51.2]} 7. f4 {[%clk 0:03:01.3]} 7... g6 {[%clk 0:02:50.9]} 8. Qe2 {[%clk
0:02:48.3]} 8... Bg7 {[%clk 0:02:50.6]} 9. O-O-O {[%clk 0:02:47.7]} 9... O-O
{[%clk 0:02:50.6]} 10. e5 {[%clk 0:02:48]} 10... dxe5 {[%clk 0:02:51.5]} 11.
fxe5 {[%clk 0:02:48.4]} 11... Qa5 {[%clk 0:02:52.2]} 12. Bxf6 {[%clk 0:02:08.4]}
12... exf6 {[%clk 0:02:47.4]} 13. e6 {[%clk 0:02:08.9]} 13... Ne5 {[%clk
0:02:48]} 14. exf7+ {[%clk 0:02:07]} 14... Rxf7 {[%clk 0:02:48.2]} 15. h4 {[%clk
0:01:58.9]} 15... Bg4 {[%clk 0:02:47.3]} 16. Nf3 {[%clk 0:01:59.2]} 16... Rc8
{[%clk 0:02:45.9]} 17. Qe3 {[%clk 0:01:35.3]} 17... Bxf3 {[%clk 0:02:24.4]} 18.
gxf3 {[%clk 0:01:34.7]} 18... Rfc7 {[%clk 0:02:24.4]} 19. Kb1 {[%clk 0:01:24.9]}
19... f5 {[%clk 0:02:17.1]} 20. Rd5 {[%clk 0:01:03.1]} 20... Rxc3 {[%clk
0:02:15.6]} 21. Qxc3 {[%clk 0:01:03.1]} 21... Qxc3 {[%clk 0:01:58.1]} 22. bxc3
{[%clk 0:01:02.7]} 22... Nxf3 {[%clk 0:01:57.7]} 23. Bg2 {[%clk 0:00:54.7]}
23... Ne5 {[%clk 0:01:54.5]} 24. Re1 {[%clk 0:00:53.1]} 24... Nc4 {[%clk
0:01:51.8]} 25. Rd7 {[%clk 0:00:50.6]} 25... Bxc3 {[%clk 0:01:46.9]} 26. Bd5+
{[%clk 0:00:50.1]} 26... Kf8 {[%clk 0:01:41.2]} 27. Rf7+ {[%clk 0:00:44.2]}
27... Kg8 {[%clk 0:01:38.9]} 28. Rc7+ {[%clk 0:00:41.8]} 28... Kf8 {[%clk
0:01:36.7]} 29. Rxc8+ {[%clk 0:00:42]} 29... Kg7 {[%clk 0:01:37.4]} 30. Re7+
{[%clk 0:00:40.1]} 30... Kf6 {[%clk 0:01:37.3]} 31. Rf7+ {[%clk 0:00:40.4]}
31... Ke5 {[%clk 0:01:37.4]} 32. Bxc4 {[%clk 0:00:40.8]} 1-0

[Event "Early-Titled-Tuesday-Blitz-August-29-2023"]
[Site "Chess.com"]
[Date "2023.08.29"]
[Round "2"]
[White "Caterpiller35"]
[Black "Irina_Mikhaylova"]
[Result "1-0"]
[WhiteElo "2496"]
[BlackElo "2281"]
[TimeControl "180+1"]
[EndTime "8:16:03 PDT"]
[Termination "Caterpiller35 won by resignation"]

1. d4 {[%clk 0:02:59.5]} 1... c5 {[%clk 0:03:00.2]} 2. d5 {[%clk 0:02:59.5]}
2... d6 {[%clk 0:03:00.1]} 3. Nc3 {[%clk 0:02:57.9]} 3... e5 {[%clk 0:03:00.2]}
4. e4 {[%clk 0:02:58]} 4... Be7 {[%clk 0:03:00]} 5. Nf3 {[%clk 0:02:55.9]} 5...
Bg4 {[%clk 0:02:59]} 6. h3 {[%clk 0:02:56.1]} 6... Bd7 {[%clk 0:02:57.5]} 7. a4
{[%clk 0:02:55.4]} 7... Nf6 {[%clk 0:02:57.3]} 8. Be2 {[%clk 0:02:55.4]} 8...
O-O {[%clk 0:02:57.2]} 9. Nd2 {[%clk 0:02:55.5]} 9... Na6 {[%clk 0:02:56.1]} 10.
Nc4 {[%clk 0:02:55.5]} 10... Nc7 {[%clk 0:02:55.4]} 11. g4 {[%clk 0:02:55.7]}
11... Rb8 {[%clk 0:02:39.1]} 12. g5 {[%clk 0:02:55]} 12... Nfe8 {[%clk
0:02:37.7]} 13. Bg4 {[%clk 0:02:50.5]} 13... b6 {[%clk 0:02:27.1]} 14. h4 {[%clk
0:02:45.9]} 14... Qc8 {[%clk 0:02:25]} 15. Bxd7 {[%clk 0:02:43.3]} 15... Qxd7
{[%clk 0:02:24.5]} 16. Ne3 {[%clk 0:02:44.2]} 16... b5 {[%clk 0:02:13.7]} 17.
axb5 {[%clk 0:02:45.1]} 17... Nxb5 {[%clk 0:02:11.9]} 18. Nxb5 {[%clk
0:02:44.5]} 18... Rxb5 {[%clk 0:02:09.8]} 19. b3 {[%clk 0:02:28.6]} 19... Rb4
{[%clk 0:01:55.2]} 20. Qd3 {[%clk 0:02:27.7]} 20... g6 {[%clk 0:01:34.4]} 21.
Bd2 {[%clk 0:02:07.9]} 21... Rd4 {[%clk 0:01:31.8]} 22. Qa6 {[%clk 0:02:02.2]}
22... Rxe4 {[%clk 0:01:30.9]} 23. Qxa7 {[%clk 0:02:02]} 23... Qxa7 {[%clk
0:01:19.7]} 24. Rxa7 {[%clk 0:02:02.9]} 24... Bd8 {[%clk 0:01:19]} 25. Kd1
{[%clk 0:02:00.1]} 25... f6 {[%clk 0:01:17.5]} 26. h5 {[%clk 0:01:54.4]} 26...
Ng7 {[%clk 0:01:09.6]} 27. hxg6 {[%clk 0:01:50.6]} 27... hxg6 {[%clk 0:01:09.6]}
28. Nc4 {[%clk 0:01:40]} 28... fxg5 {[%clk 0:01:03.5]} 29. Nxd6 {[%clk
0:01:35.6]} 29... Rd4 {[%clk 0:01:03.2]} 30. Kc1 {[%clk 0:01:30.5]} 30... Rxd5
{[%clk 0:01:01.1]} 31. Ne4 {[%clk 0:01:30.5]} 31... Rxf2 {[%clk 0:00:58.3]} 32.
Nxf2 {[%clk 0:01:30]} 1-0

[Event "Early-Titled-Tuesday-Blitz-August-29-2023"]
[Site "Chess.com"]
[Date "2023.08.29"]
[Round "2"]
[White "sofaceindisguise"]
[Black "platy3"]
[Result "0-1"]
[WhiteElo "2610"]
[BlackElo "2936"]
[TimeControl "180+1"]
[EndTime "8:16:04 PDT"]
[Termination "platy3 won by resignation"]

1. Nf3 {[%clk 0:02:42.7]} 1... b5 {[%clk 0:02:57.7]} 2. e3 {[%clk 0:02:41.7]}
2... a6 {[%clk 0:02:57.2]} 3. a4 {[%clk 0:02:41.5]} 3... b4 {[%clk 0:02:55.2]}
4. a5 {[%clk 0:02:41.8]} 4... Bb7 {[%clk 0:02:54.2]} 5. d4 {[%clk 0:02:42.4]}
5... Nf6 {[%clk 0:02:53.9]} 6. Be2 {[%clk 0:02:42.4]} 6... e6 {[%clk 0:02:52.9]}
7. O-O {[%clk 0:02:42.7]} 7... c5 {[%clk 0:02:53.4]} 8. Nbd2 {[%clk 0:02:32.5]}
8... Nc6 {[%clk 0:02:45.9]} 9. c3 {[%clk 0:02:28.6]} 9... bxc3 {[%clk
0:02:39.5]} 10. bxc3 {[%clk 0:02:28.7]} 10... Nxa5 {[%clk 0:02:39.1]} 11. Ba3
{[%clk 0:02:21.4]} 11... Rc8 {[%clk 0:02:25.1]} 12. Ne5 {[%clk 0:02:10.7]} 12...
Be7 {[%clk 0:02:19]} 13. Bf3 {[%clk 0:01:45.3]} 13... O-O {[%clk 0:02:11.3]} 14.
Bxb7 {[%clk 0:01:35.4]} 14... Nxb7 {[%clk 0:02:12.2]} 15. Qf3 {[%clk 0:01:35.5]}
15... d5 {[%clk 0:01:59.9]} 16. Rfb1 {[%clk 0:01:35]} 16... Qc7 {[%clk
0:01:57.2]} 17. c4 {[%clk 0:01:23]} 17... cxd4 {[%clk 0:01:54.7]} 18. exd4
{[%clk 0:01:17.1]} 18... Bxa3 {[%clk 0:01:50.8]} 19. Rxa3 {[%clk 0:01:17.3]}
19... Nd6 {[%clk 0:01:51.5]} 20. c5 {[%clk 0:01:15.7]} 20... Nb5 {[%clk
0:01:51.4]} 21. Re3 {[%clk 0:00:19.1]} 21... Nxd4 {[%clk 0:01:49.7]} 22. Qf4
{[%clk 0:00:19.5]} 22... Qxc5 {[%clk 0:01:32.4]} 23. Rg3 {[%clk 0:00:18.1]}
23... Ne2+ {[%clk 0:01:31.4]} 0-1

[Event "Early-Titled-Tuesday-Blitz-August-29-2023"]
[Site "Chess.com"]
[Date "2023.08.29"]
[Round "2"]
[White "DrDreBeats"]
[Black "gm_rashid"]
[Result "1-0"]
[WhiteElo "2594"]
[BlackElo "2371"]
[TimeControl "180+1"]
[EndTime "8:16:04 PDT"]
[Termination "DrDreBeats won on time"]

1. e4 {[%clk 0:02:56.3]} 1... e6 {[%clk 0:02:59.6]} 2. d4 {[%clk 0:02:55.7]}
2... d5 {[%clk 0:03:00.2]} 3. exd5 {[%clk 0:02:56.1]} 3... exd5 {[%clk
0:03:00.5]} 4. c4 {[%clk 0:02:55.1]} 4... dxc4 {[%clk 0:02:55.6]} 5. Bxc4 {[%clk
0:02:52.9]} 5... Nf6 {[%clk 0:02:55]} 6. Nc3 {[%clk 0:02:48.7]} 6... Nc6 {[%clk
0:02:53.4]} 7. Nf3 {[%clk 0:02:47.4]} 7... Bg4 {[%clk 0:02:50.7]} 8. O-O {[%clk
0:02:47.2]} 8... Be7 {[%clk 0:02:15.5]} 9. Re1 {[%clk 0:02:43.7]} 9... O-O
{[%clk 0:02:15.3]} 10. h3 {[%clk 0:02:43.9]} 10... Bxf3 {[%clk 0:02:08.3]} 11.
Qxf3 {[%clk 0:02:43.2]} 11... Nxd4 {[%clk 0:02:07.4]} 12. Qxb7 {[%clk
0:02:32.7]} 12... Nc2 {[%clk 0:01:35.4]} 13. Rd1 {[%clk 0:02:31.8]} 13... Bd6
{[%clk 0:01:34.7]} 14. Rb1 {[%clk 0:02:15.7]} 14... Qe7 {[%clk 0:01:13.7]} 15.
Bg5 {[%clk 0:02:12.1]} 15... Qe5 {[%clk 0:01:06.9]} 16. f4 {[%clk 0:02:06.7]}
16... Qc5+ {[%clk 0:01:04.7]} 17. Kh1 {[%clk 0:02:02.9]} 17... Qxc4 {[%clk
0:01:05.1]} 18. Bxf6 {[%clk 0:02:03]} 18... gxf6 {[%clk 0:01:05.2]} 19. Nd5
{[%clk 0:02:01.8]} 19... Kg7 {[%clk 0:00:36.7]} 20. b3 {[%clk 0:01:55.4]} 20...
Qe4 {[%clk 0:00:34.3]} 21. Qa6 {[%clk 0:01:50.2]} 21... Ne3 {[%clk 0:00:31.2]}
22. Nxe3 {[%clk 0:01:48.7]} 22... Qf3 {[%clk 0:00:31.7]} 23. gxf3 {[%clk
0:01:48]} 1-0

[Event "Early-Titled-Tuesday-Blitz-August-29-2023"]
[Site "Chess.com"]
[Date "2023.08.29"]
[Round "2"]
[White "Chernobay_Artem"]
[Black "Msb2"]
[Result "0-1"]
[WhiteElo "2649"]
[BlackElo "3026"]
[TimeControl "180+1"]
[EndTime "8:16:06 PDT"]
[Termination "Msb2 won by resignation"]

1. e4 {[%clk 0:02:59.8]} 1... e6 {[%clk 0:03:00.4]} 2. d4 {[%clk 0:02:55.9]}
2... d5 {[%clk 0:03:01.1]} 3. Nc3 {[%clk 0:02:54.4]} 3... Nf6 {[%clk 0:03:01.3]}
4. Bg5 {[%clk 0:02:52.6]} 4... dxe4 {[%clk 0:03:01.2]} 5. Nxe4 {[%clk 0:02:52]}
5... Be7 {[%clk 0:03:01.8]} 6. Bxf6 {[%clk 0:02:51.1]} 6... gxf6 {[%clk
0:03:02.4]} 7. Qd2 {[%clk 0:02:49.9]} 7... c5 {[%clk 0:03:02.2]} 8. Nxc5 {[%clk
0:02:45.4]} 8... Bxc5 {[%clk 0:03:02.2]} 9. dxc5 {[%clk 0:02:46.3]} 9... Qxd2+
{[%clk 0:03:03.1]} 10. Kxd2 {[%clk 0:02:46.5]} 10... Ke7 {[%clk 0:03:04]} 11. c3
{[%clk 0:02:38.7]} 11... a5 {[%clk 0:03:03.7]} 12. Bb5 {[%clk 0:02:34.8]} 12...
Bd7 {[%clk 0:03:02.6]} 13. a4 {[%clk 0:02:31.3]} 13... Rc8 {[%clk 0:03:02.2]}
14. Bxd7 {[%clk 0:02:25.3]} 14... Nxd7 {[%clk 0:03:03.1]} 15. b4 {[%clk
0:02:25.8]} 15... b6 {[%clk 0:02:57.8]} 16. Ne2 {[%clk 0:02:18.4]} 16... bxc5
{[%clk 0:02:51.9]} 17. b5 {[%clk 0:02:17.9]} 17... Nb6 {[%clk 0:02:51.8]} 18.
Kc2 {[%clk 0:02:15.9]} 18... Rd8 {[%clk 0:02:51.2]} 19. Nf4 {[%clk 0:02:07.4]}
19... c4 {[%clk 0:02:42.1]} 20. Rhd1 {[%clk 0:01:57.3]} 20... Rxd1 {[%clk
0:02:41.8]} 21. Kxd1 {[%clk 0:01:58.2]} 21... e5 {[%clk 0:02:39.2]} 22. Ne2
{[%clk 0:01:56]} 22... f5 {[%clk 0:02:39.7]} 23. Kc2 {[%clk 0:01:52.8]} 23...
Rd8 {[%clk 0:02:38.2]} 24. Re1 {[%clk 0:01:37.8]} 24... f6 {[%clk 0:02:36.8]}
25. f4 {[%clk 0:01:23.3]} 25... Kf7 {[%clk 0:02:29.7]} 26. Ng3 {[%clk
0:01:20.1]} 26... Ke6 {[%clk 0:02:29.6]} 27. Nh5 {[%clk 0:01:12]} 27... Rd7
{[%clk 0:02:25]} 28. fxe5 {[%clk 0:00:56]} 28... fxe5 {[%clk 0:02:25.9]} 29.
Nf4+ {[%clk 0:00:56.2]} 29... Kf6 {[%clk 0:02:25.7]} 30. Nh5+ {[%clk 0:00:55.8]}
30... Kg6 {[%clk 0:02:26.1]} 31. Ng3 {[%clk 0:00:55.7]} 31... Rd5 {[%clk
0:02:23.8]} 32. Rf1 {[%clk 0:00:53.5]} 32... f4 {[%clk 0:02:23.7]} 33. Ne2
{[%clk 0:00:46.6]} 33... Nxa4 {[%clk 0:02:18.5]} 34. Ra1 {[%clk 0:00:37.3]}
34... Nb6 {[%clk 0:02:18.6]} 35. Rxa5 {[%clk 0:00:37.8]} 35... Kf5 {[%clk
0:02:19.3]} 36. Ra7 {[%clk 0:00:33.8]} 36... Rxb5 {[%clk 0:02:18.6]} 37. Rxh7
{[%clk 0:00:33]} 37... Nd5 {[%clk 0:02:19]} 38. Rh5+ {[%clk 0:00:29.4]} 38...
Ke4 {[%clk 0:02:19.4]} 39. Ng1 {[%clk 0:00:24.1]} 39... Ne3+ {[%clk 0:02:19.3]}
40. Kc1 {[%clk 0:00:24.1]} 40... Nxg2 {[%clk 0:02:18.7]} 41. Rh8 {[%clk
0:00:19.6]} 41... f3 {[%clk 0:02:18.5]} 0-1

[Event "Early-Titled-Tuesday-Blitz-August-29-2023"]
[Site "Chess.com"]
[Date "2023.08.29"]
[Round "2"]
[White "FREDERICKtheMATE"]
[Black "JiiHart"]
[Result "1-0"]
[WhiteElo "2441"]
[BlackElo "2101"]
[TimeControl "180+1"]
[EndTime "8:16:08 PDT"]
[Termination "FREDERICKtheMATE won by resignation"]

1. Nf3 {[%clk 0:03:00.9]} 1... Nf6 {[%clk 0:02:59.3]} 2. g3 {[%clk 0:03:01.6]}
2... g6 {[%clk 0:02:59.4]} 3. Bg2 {[%clk 0:03:02]} 3... Bg7 {[%clk 0:03:00]} 4.
O-O {[%clk 0:03:02.7]} 4... O-O {[%clk 0:03:00.5]} 5. d4 {[%clk 0:03:03.3]} 5...
d5 {[%clk 0:03:00.9]} 6. c4 {[%clk 0:03:04]} 6... c5 {[%clk 0:03:01.3]} 7. dxc5
{[%clk 0:03:02.8]} 7... dxc4 {[%clk 0:03:00.7]} 8. Ne5 {[%clk 0:03:00]} 8...
Qxd1 {[%clk 0:02:36.9]} 9. Rxd1 {[%clk 0:02:59.2]} 9... Nfd7 {[%clk 0:02:06.2]}
10. Nxc4 {[%clk 0:02:50.7]} 10... Nxc5 {[%clk 0:02:04.6]} 11. Na5 {[%clk
0:02:50.9]} 11... Nba6 {[%clk 0:01:47.3]} 12. Nc3 {[%clk 0:02:50.7]} 12... Rb8
{[%clk 0:01:23.8]} 13. Bf4 {[%clk 0:02:48.5]} 13... e5 {[%clk 0:01:22.7]} 14.
Be3 {[%clk 0:02:47.9]} 14... b6 {[%clk 0:01:00.9]} 15. Nc6 {[%clk 0:02:45.8]}
15... Rb7 {[%clk 0:00:59.8]} 16. b4 {[%clk 0:02:28.4]} 16... Ne6 {[%clk
0:00:48.1]} 17. Nb5 {[%clk 0:02:20.6]} 17... Bd7 {[%clk 0:00:37.9]} 18. Ncxa7
{[%clk 0:02:17.8]} 18... Bxb5 {[%clk 0:00:28.7]} 19. Bxb7 {[%clk 0:02:16.2]}
19... Bxe2 {[%clk 0:00:24.6]} 20. Re1 {[%clk 0:02:16.2]} 20... Bd3 {[%clk
0:00:23.9]} 21. Rad1 {[%clk 0:02:12.2]} 21... e4 {[%clk 0:00:23.5]} 22. Rxd3
{[%clk 0:02:09.8]} 22... exd3 {[%clk 0:00:23.1]} 23. Bxa6 {[%clk 0:02:10.2]}
23... Rd8 {[%clk 0:00:20.1]} 24. Bxb6 {[%clk 0:01:57.9]} 24... Rd6 {[%clk
0:00:18.6]} 25. Nc8 {[%clk 0:01:57.8]} 25... Rc6 {[%clk 0:00:17.2]} 26. Ne7+
{[%clk 0:01:55.5]} 26... Kf8 {[%clk 0:00:16.4]} 27. Nxc6 {[%clk 0:01:55.9]}
27... d2 {[%clk 0:00:16.8]} 28. Rd1 {[%clk 0:01:55.6]} 28... Bc3 {[%clk
0:00:15.7]} 29. b5 {[%clk 0:01:55]} 29... Ng5 {[%clk 0:00:14.3]} 30. Be3 {[%clk
0:01:53.9]} 30... Ne4 {[%clk 0:00:13.7]} 31. b6 {[%clk 0:01:52.6]} 1-0

[Event "Early-Titled-Tuesday-Blitz-August-29-2023"]
[Site "Chess.com"]
[Date "2023.08.29"]
[Round "2"]
[White "vladislavkovalev"]
[Black "Chessdreamer2020"]
[Result "1-0"]
[WhiteElo "2906"]
[BlackElo "2597"]
[TimeControl "180+1"]
[EndTime "8:16:10 PDT"]
[Termination "vladislavkovalev won on time"]

1. e4 {[%clk 0:02:56.8]} 1... d6 {[%clk 0:02:59.3]} 2. d4 {[%clk 0:02:56.8]}
2... Nf6 {[%clk 0:02:59.2]} 3. Nc3 {[%clk 0:02:56.9]} 3... c6 {[%clk 0:02:59.3]}
4. a4 {[%clk 0:02:56.1]} 4... e5 {[%clk 0:02:59]} 5. Nf3 {[%clk 0:02:56.1]} 5...
Nbd7 {[%clk 0:02:57.9]} 6. Bc4 {[%clk 0:02:55.6]} 6... Be7 {[%clk 0:02:58.1]} 7.
O-O {[%clk 0:02:55.8]} 7... O-O {[%clk 0:02:58.3]} 8. Re1 {[%clk 0:02:56.2]}
8... a5 {[%clk 0:02:58.4]} 9. h3 {[%clk 0:02:56.4]} 9... Nb6 {[%clk 0:02:58.4]}
10. Bd3 {[%clk 0:02:52.7]} 10... Nfd7 {[%clk 0:02:47.9]} 11. Ne2 {[%clk
0:02:49.1]} 11... exd4 {[%clk 0:02:29.8]} 12. Nexd4 {[%clk 0:02:49.3]} 12... Nc5
{[%clk 0:02:28.8]} 13. b3 {[%clk 0:02:49.9]} 13... Bf6 {[%clk 0:02:19]} 14. Rb1
{[%clk 0:02:48.3]} 14... Re8 {[%clk 0:02:17.8]} 15. Ba3 {[%clk 0:02:47.7]} 15...
Nbd7 {[%clk 0:02:07.2]} 16. Qd2 {[%clk 0:02:22.4]} 16... Ne5 {[%clk 0:01:56.5]}
17. Nxe5 {[%clk 0:02:17.2]} 17... Bxe5 {[%clk 0:01:41.8]} 18. Nf3 {[%clk
0:02:14.2]} 18... Nxd3 {[%clk 0:00:47.8]} 19. Qxd3 {[%clk 0:02:13.4]} 19... Qf6
{[%clk 0:00:39.8]} 20. Rbd1 {[%clk 0:02:10.7]} 20... Bf4 {[%clk 0:00:12.3]} 21.
Bxd6 {[%clk 0:02:06.4]} 21... Rd8 {[%clk 0:00:08.4]} 22. e5 {[%clk 0:02:06.8]}
22... Qh6 {[%clk 0:00:07.5]} 23. Qe4 {[%clk 0:01:54.8]} 23... Be6 {[%clk
0:00:05.8]} 24. c4 {[%clk 0:01:55.2]} 24... Re8 {[%clk 0:00:04.2]} 25. h4 {[%clk
0:01:53.6]} 25... Bg4 {[%clk 0:00:03.6]} 26. g3 {[%clk 0:01:51.6]} 1-0